{"text_format":"1","workbook":"xlsx","n_sheets":3,"sheets":["AER only","Business & other details","7.5 EBSS"],"not_rendered":{"charts":0,"images":1,"macros":0,"external_links":3,"defined_names":369,"comments":1,"pivot_tables":0},"unopened":[],"bounds":{"document_bytes":16777216,"sheet_cells":100000,"rows_first":2000,"rows_last":500,"rows_between":2000,"halvings":0,"cell_chars":16384,"cell_head_chars":4096},"cells_cut":0,"cells_raw":0,"read":"whole","date_system":"1900"}

{"sheet":"AER only","index":0,"n_rows":147,"n_cols":40,"rows_kept":147,"cut":false,"hidden":true,"merged":[[55,34,59,34],[63,34,64,34],[69,14,69,15],[69,22,69,25],[107,1,107,8],[52,34,54,34],[0,1,0,11],[4,28,4,38],[5,28,5,31],[5,34,5,38],[50,22,50,26],[50,28,50,31],[51,1,51,5],[51,14,51,21],[51,22,51,26],[51,28,51,31],[52,2,52,3]]}
[null,"Data in these columns used for data validation and database purposes."]
[null,"Date last modified:","2017-01-16","added (Albury and Victora) for AGN"]
[null,null,"2016-10-17","updated TransGrid's correct legal name, corrected TasNetworks (T) to June financial year"]
[null,null,"2017-02-01","inserted Power and Water, added NRs (dms_FeederCat_1 and dms_FeederCat_2)"]
[null,null,"2017-03-03","inserted AEMO as a business",null,null,null,null,null,null,null,null,null,null,null,null,null,null,null,null,null,null,null,null,null,null,null,null,"FOR ELECTRICITY BUSINESSES ONLY"]
[null,null,null,null,null,null,null,null,null,null,null,null,null,null,null,null,null,null,null,null,null,null,null,null,null,null,null,null,"Feeder Types",null,null,null,"TasNetworks (D)","MAIFI flag","Feeder Names"]
[null,null,null,null,null,null,null,null,null,null,null,null,null,null,null,null,null,null,null,null,null,null,null,null,null,null,null,null,"CBD","Urban","Short rural","long rural","EXTRA"]
[null,"dms_TradingName_List","dms_TradingNameFull_List","dms_ABN_List","dms_JurisdictionList","dms_Sector_List","dms_Segment_List","dms_FormControl_List","dms_RPT_List","dms_RPTMonth_List","dms_CRCPlength_List","dms_FRCPlength_List","dms_663_List","dms_DeterminationRef_List","dms_Addr1_List","dms_Addr2_List","dms_Suburb_List","dms_State_List","dms_PostCode_List","dms_PAddr1_List","dms_PAddr2_List","dms_PSuburb_List","dms_PState_List","dms_PPostCode_List","dms_ContactName1_List","dms_ContactPh1_List","dms_ContactEmail_List","Column1","dms_CBD_flag","dms_Urban_flag","dms_ShortRural_flag","dms_LongRural_flag","dms_FeederType_5_flag","dms_MAIFI_flag_List","dms_FeederName_1","dms_FeederName_2","dms_FeederName_3","dms_FeederName_4","dms_FeederName_5"]
[null,"ActewAGL Distribution","ActewAGL Distribution",76670568688,"ACT","Electricity","Distribution","Revenue cap","Financial","June",5,5,5,"2014-19 Distribution Determination","40 Bunda Street",null,"CANBERRA","ACT","2600","GPO BOX 366",null,"CANBERRA","ACT",2601,"Robert Walker","02 6248 3847","robert.walker@actewagle.com.au",null,"NO","YES","YES","NO","NO",null,"CBD","Urban","Short rural","Long rural",null,"ActewAGL Distribution"]
[null,"ActewAGL Distribution (Tx Assets)","ActewAGL Distribution (Tx Assets)",76670568688,"ACT","Electricity","Distribution","Revenue cap","Financial","June",5,5,5,"distribution determination","40 Bunda Street",null,"CANBERRA","ACT","2600","GPO BOX 366",null,"CANBERRA","ACT",2601,"Robert Walker","02 6248 3847","robert.walker@actewagle.com.au",null,null,null,null,null,null,null,"CBD","Urban","Short rural","Long rural",null,"ActewAGL Distribution (Tx Assets)"]
[null,"ActewAGL Gas","ActewAGL Gas",76670568688,"ACT","Gas","Distribution","Weighted average price cap","Financial","June",5,5,"x",null,"40 Bunda Street",null,"CANBERRA","ACT","2600","GPO BOX 366",null,"CANBERRA","ACT",2601,"Philip Deamer","02 6248 3438","GasAAReview@actewagl.com.au",null,null,null,null,null,null,null,null,null,null,null,null,"ActewAGL Gas"]
[null,"AEMO","Australian Energy Market Operator Ltd",94072010327,"Vic","Electricity","Transmission","-","Financial","March",5,5,"x","-","Level 22","530 Collins Street","MELBOURNE","VIC","3000","GPO Box 2008",null,"MELBOURNE","VIC","3001",null,null,null,null,null,null,null,null,null,null,null,null,null,null,null,"AEMO"]
[null,"AGN (Albury and Victoria)","Australian Gas Networks Limited (reporting data for Albury and Victoria)",19078551685,"Vic","Gas","Distribution","Weighted average price cap","Calendar","December",5,5,"x",null,"Level 6","400 King William Street","ADELAIDE","SA","5000","PO Box 6468","Halifax Street","ADELAIDE","SA","5000","Craig de Laine","08 8418 1129 ","craig.delaine@agn.com.au",null,null,null,null,null,null,null,"CBD","Urban","Short rural","Long rural",null,"AGN (Albury)"]
[null,"AGN (Albury)","Australian Gas Networks Limited (reporting data for Albury)",19078551685,"Vic","Gas","Distribution","Weighted average price cap","Calendar","December",5,5,"x",null,"Level 6","400 King William Street","ADELAIDE","SA","5000","PO Box 6468","Halifax Street","ADELAIDE","SA","5000","Craig de Laine","08 8418 1129 ","craig.delaine@agn.com.au",null,null,null,null,null,null,null,"CBD","Urban","Short rural","Long rural"]
[null,"AGN (SA)","Australian Gas Networks Limited (reporting data for SA)",19078551685,"SA","Gas","Distribution","Weighted average price cap","Financial","June",5,5,5,"distribution determination","Level 6","400 King William Street","ADELAIDE","SA","5000","PO Box 6468","Halifax Street","ADELAIDE","SA","5000","Craig de Laine","08 8418 1129 ","craig.delaine@agn.com.au",null,null,null,null,null,null,null,null,null,null,null,null,"AGN (SA)"]
[null,"AGN (Victoria)","Australian Gas Networks Limited (reporting data for Victoria)",19078551685,"Vic","Gas","Distribution","Weighted average price cap","Calendar","December",5,5,"x",null,null,null,null,null,null,null,null,null,null,null,null,null,null,null,null,null,null,null,null,null,null,null,null,null,null,"AGN (Victoria)"]
[null,"Amadeus","APT Pipelines (NT) Pty Ltd",39009737393,"NT","Gas","Transmission","Weighted average price cap","Financial","June",5,5,"x","n/a","Level 19, HSBC Building","580 George Street","SYDNEY","NSW","2000","Level 19, HSBC Building","580 George Street","SYDNEY","NSW","2000","Alexandra Curran","02 9275 0020","alexandra.curran@apa.com.au",null,null,null,null,null,null,null,null,null,null,null,null,"Amadeus"]
[null,"APA GasNet","APA GasNet Australia (Operations) Pty Ltd","065083009","Vic","Gas","Transmission","Weighted average price cap","Calendar","December",5,5,"x",null,"Level 19, HSBC Building","580 George Street","SYDNEY","NSW","2000","PO Box R41",null,"ROYAL EXCHANGE","NSW","1225",null,"02 9693 0000",null,null,null,null,null,null,null,null,null,null,null,null,null,"APA GasNet"]
[null,"Ausgrid","Ausgrid",78508211731,"NSW","Electricity","Distribution","Revenue cap","Financial","June",5,5,5,"2014-19 Distribution Determination","570 George St",null,"SYDNEY","NSW",2000,"GPO Box 4009",null,"SYDNEY","NSW","2001","John Thomson","(02) 9269 2312","john.thomson@ausgrid.com.au",null,"YES","YES","YES","YES","NO",null,"CBD","Urban","Short rural","Long rural",null,"Ausgrid"]
[null,"Ausgrid (Tx Assets)","Ausgrid (Tx Assets)",67505337385,"NSW","Electricity","Distribution","Revenue cap","Financial","June",5,5,5,"distribution determination",null,null,null,"NSW",null,null,null,null,null,null,null,null,null,null,null,null,null,null,null,null,"CBD","Urban","Short rural","Long rural",null,"Ausgrid (Tx Assets)"]
[null,"AusNet (D)","AusNet Electricity Services Pty Ltd",91064651118,"Vic","Electricity","Distribution","Revenue cap","Calendar","December",5,5,2,"2016-20 Distribution Determination","Level 32","2 Southbank Boulevard","SOUTHBANK","Vic","3006","Locked Bag 14051",null,"MELBOURNE CITY MAIL CENTRE","VIC",8001,null,null,null,null,null,"YES","YES","YES","NO",null,"CBD","Urban","Short rural","Long rural",null,"AusNet (D)"]
[null,"AusNet (Gas)","AusNet Gas Services","086015036","Vic","Gas","Distribution","Weighted average price cap","Calendar","December",5,5,"X",null,"Level 19, HSBC Building","580 George Street","SYDNEY","NSW","2000","PO Box R41",null,"ROYAL EXCHANGE","NSW","1225","Alexandra Curran","02 9275 0020","alexandra.curran@apa.com.au",null,null,null,null,null,null,null,null,null,null,null,null,"AusNet (Gas)"]
[null,"AusNet (T)","Ausnet Services (Transmission) Ltd",48116124362,"Vic","Electricity","Transmission","Revenue cap","Financial","March",5,5,2,"transmission determination","Level 32","2 Southbank Boulevard","SOUTHBANK","Vic","3006","Locked Bag 14051",null,"MELBOURNE CITY MAIL CENTRE","Vic","8001","Clare Thompson","03 9695 6670","clare.e.thompson@ausnetservices.com.au",null,null,null,null,null,null,null,"CBD","Urban","Short rural","Long rural",null,"AusNet (T)"]
[null,"Australian Distribution Co.","Australian Distribution Co.",11222333444,"-","Electricity","Distribution","Revenue cap","Financial","June",5,5,2,"distribution determination","123 Straight Street",null,"SYDNEY","NSW","2000","PO Box 123",null,"SYDNEY","NSW",2000,"Bob Smith","02 1234 5678","bob@auselec.net.au",null,null,null,null,null,null,null,"CBD","Urban","Short rural","Long rural",null,"Australian Distribution Co."]
[null,"Australian Distribution Co. (Vic)","Australian Distribution Co. (Victoria)",11222333444,"Vic","Electricity","Distribution","Revenue cap","Calendar","December",5,5,2,"distribution determination","123 Straight Street",null,"MELBOURNE","Vic","3000","PO Box 123",null,"MELBOURNE","VIC","3000","Bob Smith","02 1234 5678","bob@auselec.net.au",null,null,null,null,null,null,null,"CBD","Urban","Short rural","Long rural",null,"Australian Distribution Co. (Vic)"]
[null,"Australian Transmission Co.","Australian Transmission Co.",11222333444,"-","Electricity","Transmission","Revenue cap","Financial","June",5,5,5,"transmission determination","123 Straight Street",null,"SYDNEY","NSW","2000","PO Box 123",null,"SYDNEY","NSW",2000,"Bob Smith","02 1234 5678","bob@auselec.net.au",null,null,null,null,null,null,null,"CBD","Urban","Short rural","Long rural",null,"Australian Transmission Co."]
[null,"CitiPower","CitiPower",76064651056,"Vic","Electricity","Distribution","Revenue cap","Calendar","December",5,5,2,"2016-20 Distribution Determination","40 Market Street",null,"MELBOURNE","Vic","3000","Locked Bag 14090",null,"MELBOURNE","VIC",8001,"Hannah Williams","03 9683 4088","hwilliams@powercor.com.au",null,"YES","YES","NO","NO","NO",null,"CBD","Urban","Short rural","Long rural",null,"CitiPower"]
[null,"Directlink","Directlink",16779340889,"Qld","Electricity","Transmission","Revenue cap","Financial","June",9,5,5,"transmission determination","Level 19, HSBC Building","580 George Street","SYDNEY","NSW","2000","PO Box R41",null,"ROYAL EXCHANGE","NSW","1225","Scott Young","02 9275 0031","scott.young@apa.com.au",null,null,null,null,null,null,null,"CBD","Urban","Short rural","Long rural",null,"Directlink"]
[null,"ElectraNet","ElectraNet",41094482416,"SA","Electricity","Transmission","Revenue cap","Financial","June",5,5,5,"transmission determination","52-55 East Terrace","Rymill Park","ADELAIDE","SA","5000","PO Box 7096","Hutt Street Post Office","ADELAIDE","SA",5000,"Bill Jackson","08 8404 7969","jackson.bill@electranet.com.au",null,null,null,null,null,null,null,"CBD","Urban","Short rural","Long rural",null,"ElectraNet"]
[null,"Endeavour Energy","Endeavour Energy",11247365823,"NSW","Electricity","Distribution","Revenue cap","Financial","June",5,5,5,"2014-19 Distribution Determination","51 Huntingwood Drive",null,"HUNTINGWOOD","NSW","2148","PO Box 811",null,"SEVEN HILLS","NSW","1730","Jon Hocking","02 9853 4386 / 0407 348 156","Jon.Hocking@Endeavourenergy.com.au",null,"NO","YES","YES","YES","NO",null,"CBD","Urban","Short rural","Long rural",null,"Endeavour Energy"]
[null,"Energex","Energex",40078849055,"Qld","Electricity","Distribution","Revenue cap","Financial","June",5,5,5,"2015-20 Distribution Determination","26 Reddacliff Street",null,"NEWSTEAD","Qld","4006","26 Reddacliff Street",null,"NEWSTEAD","QLD","4006","Nicola Roscoe","07 3664 5891","nicolaroscoe@energex.com.au",null,"YES","YES","YES","NO","NO",null,"CBD","Urban","Short rural","Long rural",null,"Energex"]
[null,"Ergon Energy","Ergon Energy",50087646062,"Qld","Electricity","Distribution","Revenue cap","Financial","June",5,5,5,"2015-20 Distribution Determination","22 Walker Street",null,"TOWNSVILLE","Qld","4810","Po Box 264",null,"FORTITUDE VALLEY","QLD",4006,"Jenny Doyle, Group Manager Regulatory Affairs","(07) 3851 6416","jenny.doyle@ergon.com.au",null,"NO","YES","YES","YES","NO",null,"CBD","Urban","Short rural","Long rural",null,"Ergon Energy"]
[null,"Essential Energy","Essential Energy",37428185226,"NSW","Electricity","Distribution","Revenue cap","Financial","June",5,5,5,"2014-19 Distribution Determination","8 Buller Street",null,"PORT MACQUARIE","NSW","2444","PO Box 5730",null,"PORT MACQUARIE","NSW","2444","Catherine Waddell","02 6338 3553","catherine.waddell@essentialenergy.com.au",null,null,null,"YES","YES","NO",null,"CBD","Urban","Short rural","Long rural",null,"Essential Energy"]
[null,"Jemena Electricity","Jemena Electricity",82064651083,"Vic","Electricity","Distribution","Revenue cap","Calendar","December",5,5,2,"2016-20 Distribution Determination","Level 16","567 Collins Street","MELBOURNE","VIC","3000","PO Box 16182",null,"MELBOURNE","VIC",8001,"Matthew Serpell","03 9173 8231","matthew.serpell@jemena.com.au",null,null,null,"YES","NO","NO",null,"CBD","Urban","Short rural","Long rural",null,"Jemena Electricity"]
[null,"JGN","Jemena Gas Networks (NSW) Ltd","003 004 322","NSW","Gas","Distribution","Weighted average price cap","Financial","June",5,5,null,null,null,null,null,null,null,null,null,null,null,null,null,null,null,null,null,null,null,null,null,null,null,null,null,null,null,"JGN"]
[null,"Multinet Gas","Multinet Gas (DB No.1) Pty Ltd (ACN 086 026 986), Multinet Gas (DB No.2) Pty Ltd (ACN 086 230 122)","086026986","Vic","Gas","Distribution","Weighted average price cap","Calendar","December",5,5,"x",null,"6 Nexus Court",null,"MULGRAVE","Vic","3149",null,null,null,null,null,"Stephanie McDougall","03 8846 9538","Stephanie.McDougall@ue.com.au",null,null,null,null,null,null,null,null,null,null,null,null,"Multinet Gas"]
[null,"Murraylink","Murraylink",79181207909,"SA","Electricity","Transmission","Revenue cap","Financial","June",5,5,5,"transmission determination","Level 19","580 George Street","SYDNEY","NSW","2000",null,null,null,null,null,"Scott Young","02 9275 0031","scott.young@apa.com.au",null,null,null,null,null,null,null,"CBD","Urban","Short rural","Long rural",null,"Murraylink"]
[null,"Power and Water","Power and Water Corporation",15947352360,"NT","Electricity","Distribution","Revenue cap","Financial","June",5,5,"x","distribution determination","GPO Box 1921",null,"DARWIN","NT","0801","GPO Box 1921",null,"DARWIN","NT","0801","Lucy Moon","08 8924 5822","Lucy.Moon@powerwater.com.au",null,"YES","YES","YES","YES","NO"]
[null,"Powercor Australia","Powercor Australia",89064651109,"Vic","Electricity","Distribution","Revenue cap","Calendar","December",5,5,2,"2016-20 Distribution Determination","40 Market Street",null,"MELBOURNE","Vic","3000","Locked bag 14090",null,"MELBOURNE","VIC",8001,"Hannah Williams","03 9683 4088","hwilliams@powercor.com.au",null,null,null,"YES","YES","NO",null,"CBD","Urban","Short rural","Long rural",null,"Powercor Australia"]
[null,"Powerlink","Queensland Electricity Transmission Corporation Limited trading as Powerlink Queensland",82078849233,"Qld","Electricity","Transmission","Revenue cap","Financial","June",5,5,5,"transmission determination","33 Harold St",null,"VIRGINIA","Qld","4014","PO Box 1193",null,"VIRGINIA","QLD",4014,"Jennifer Harris","07 3860 2667","jharris@powerlink.com.au",null,null,null,null,null,null,null,"CBD","Urban","Short rural","Long rural",null,"Powerlink"]
[null,"Roma to Brisbane Pipeline","APT Petroleum Pipelines Limited t/a Roma to Brisbane Pipeline","009 737 393","Qld","Gas","Transmission","Weighted average price cap","Financial","June",5,5,"x","n/a","580 George Street",null,"SYDNEY","NSW","2000","PO Box R41",null,"ROYAL EXCHANGE","NSW","1225","Mark Allen","02 9275 0010","mark.allen@apa.com.au",null,null,null,null,null,null,null,"CBD","Urban","Short rural","Long rural",null,"Roma to Brisbane Pipeline"]
[null,"SA Power Networks","SA Power Networks",13332330749,"SA","Electricity","Distribution","Revenue cap","Financial","June",5,5,5,"2015-20 Distribution Determination","1 Anzac Highway",null,"KESWICK","SA","5035","GPO Box 77",null,"ADELAIDE","SA","5000","Richard Sibly","08 8404 5613","richard.sibly@sapowernetworks.com.au",null,null,null,"YES","YES","NO",null,"CBD","Urban","Short rural","Long rural",null,"SA Power Networks"]
[null,"TasNetworks (D)","TasNetworks (D)",24167357299,"Tas","Electricity","Distribution","Revenue cap","Financial","June",5,5,5,"distribution determination","1-7 Maria Street",null,"LENAH VALLEY","Tas","7008","PO Box 606",null,"MOONAH","Tas","7009","John Sayers","03 6271 6469","john.sayers@tasnetworks.com.au",null,null,null,"YES","YES","YES",null,"Critical Infrastructure","High density commercial","Urban","High density rural","Low density rural","TasNetworks (D)"]
[null,"TasNetworks (T)","TasNetworks (T)",24167357299,"Tas","Electricity","Transmission","Revenue cap","Financial","June",5,5,5,"transmission determination","1-7 Maria Street",null,"LENAH VALLEY","Tas","7008","PO Box 606",null,"MOONAH","Tas","7009","John Sayers","03 6271 6469","john.sayers@tasnetworks.com.au",null,null,null,null,null,null,null,"CBD","Urban","Short rural","Long rural",null,"TasNetworks (T)"]
[null,"TransGrid","NSW Electricity Networks Operations Pty Ltd trading as TransGrid",609169959,"NSW","Electricity","Transmission","Revenue cap","Financial","June",5,4,5,"transmission determination","180 Thomas Street",null,"SYDNEY","NSW","2000","PO Box A1000",null,"SYDNEY SOUTH","NSW","1235","Garrie Chubb","0408 210 221","garrie.chubb@transgrid.com.au",null,null,null,null,null,null,null,"CBD","Urban","Short rural","Long rural",null,"TransGrid"]
[null,"United Energy","United Energy",70064651029,"Vic","Electricity","Distribution","Revenue cap","Calendar","December",5,5,2,"2016-20 Distribution Determination","Level 3","6 Nexus Court","MULGRAVE","Vic","3149","PO Box 449",null,"MOUNT WAVERLEY","VIC",3170,"Mathew Abraham","03 8846 9758","mathew.abraham@ue.com.au",null,null,null,"YES","NO","NO",null,"CBD","Urban","Short rural","Long rural",null,"United Energy"]
[null,"Western Power (D)","Western Power (D)",18540492861,"WA","Electricity","Distribution","Revenue cap","Financial","June",12,4,"x","distribution determination","363 Wellington Street",null,"PERTH","WA","6000","GPO Box L921",null,"PERTH","WA",6842,"Judy Hunter","08 9326 6239","judy.hunter@westernpower.com.au",null,null,null,"YES","YES","NO","NO","CBD","Urban","Short rural","Long rural",null,"Western Power (D)"]
[null,"Western Power (T)","Western Power (T)",18540492861,"WA","Electricity","Transmission","Revenue cap","Financial","June",12,4,"x","transmission determination","363 Wellington Street",null,"PERTH","WA","6000","GPO Box L921",null,"PERTH","WA",6842,"Judy Hunter","08 9326 6239","judy.hunter@westernpower.com.au",null,null,null,"YES","YES","NO",null,"CBD","Urban","Short rural","Long rural",null,"Western Power (T)"]
[]
[]
[null,null,null,null,null,null,null,null,null,null,null,null,null,null,null,null,null,null,null,null,null,null,"For EB & Reset RINs only",null,null,null,null,null,"For AARs only"]
[null,"The Reg Year Ending (dms_RYE) must be set to the last year of the regulatory period. For forecast data is is usually (FRCP_y5) for actual it is a single year (CRY). For historical actual data the RYE will need to be set manually in the business details sheet by setting the dms_Multiyear_flag to 1 and putting the correct value in 'dms_Specified_FinalYear. See cells C67:C68",null,null,null,null,{"$f":"IF(dms_RPT=\"financial\",VALUE(LEFT(CRCP_y1,4)-1)&\"-\"&TEXT(VALUE(RIGHT(CRCP_y1,2)-1),\"00\"),VALUE(LEFT(CRCP_y1,4)-1))","v":"2013-14"},null,null,null,null,null,null,"Drop down selector box for CA & Reset RINs.","For CA & Reset RINs only",null,null,null,null,null,null,null,"for DNSP only",null,null,null,null,null,"For DNSPs only",null,null,null,null,null,"Reason for interruption","dms_Reason_Interruption_Detailed","dms_Reason_Interruption"]
[null,"dms_Model_List ","DELETE NR 'CRY' IF NOT AN ANNUAL RIN (EB, CA , ARR)",null,"dms_RYE_Formula_Result",null,null,null,null,null,null,null,null,"dms_0203_ProjectType","dms_020303_01_UOM","dms_020501_01_UOM","dms_020501_02_UOM","dms_020501_03_UOM","dms_020501_04_UOM","dms_020603_01_UOM","dms_040102_01_UOM","dms_040102_04_UOM","dms_030601_01_UOM","dms_030601_02_UOM","dms_030701_01_UOM","dms_030702_01_UOM","dms_030703_01_UOM",null,"dms_030605_UOM","dms_03060703_UOM",null,null,null,null,"Animal","Animal impact","Animal"]
[null,"ARR","ANNUAL REPORTING STATEMENT",null,{"$f":"LEFT(dms_SingleYear_FinalYear_Result,2)&RIGHT(dms_SingleYear_FinalYear_Result,2)","v":"2020"},"=LEFT(dms_SingleYear_FinalYear_Result,2)&RIGHT(dms_SingleYear_FinalYear_Result,2)",null,"Formula errors are OK",null,null,null,null,null,"New line on new route - single circuit","Circuit line length in km","0's","0's","0's","0's","0's","0's","days","minutes/customer","minutes/customer","Customer / km","%","km",null,"number","number",null,null,null,null,null,"Animal nesting/burrowing, etc and other","Asset failure"]
[null,"CA","CATEGORY ANALYSIS",null,{"$f":"LEFT(dms_SingleYear_FinalYear_Result,2)&RIGHT(dms_SingleYear_FinalYear_Result,2)","v":"2020"},"=LEFT(dms_SingleYear_FinalYear_Result,2)&RIGHT(dms_SingleYear_FinalYear_Result,2)",null,"Formula errors are OK",null,null,null,null,null,"New line on new route - dual circuit","Circuit line length in km","0's","0's","0's","0's","0's","0's","0's","minutes/customer","minutes/customer","MWh/customer","Number of spans",null,null,"number","number",null,null,null,null,null,"Other","Other"]
[null,"CPI","CPI",null,null,null,null,null,null,null,null,null,null,"New line on new route - other","Circuit line length in km","MVA added","MVA added","MVA added","MVA added","0's","0's","$0s","interruptions/customer","interruptions/customer","kVA / customer","Number of spans",null,null,"number","number",null,null,null,null,"Asset failure","LV","Overloads"]
[null,"EB","ECONOMIC BENCHMARKING",null,{"$f":"LEFT(dms_SingleYear_FinalYear_Result,2)&RIGHT(dms_SingleYear_FinalYear_Result,2)","v":"2020"},"=LEFT(dms_SingleYear_FinalYear_Result,2)&RIGHT(dms_SingleYear_FinalYear_Result,2)",null,"Formula errors are OK",null,null,null,null,null,"Line rebuild over existing route - single circuit","Circuit line length in km","0's","0's","0's","0's","0's","$0s","0's","interruptions/customer","interruptions/customer",null,"Number of spans",null,null,"number","number",null,null,null,null,null,"Distribution substation","Planned"]
[null,"PTRM","POST TAX REVENUE MODEL",null,{"$f":"LEFT(dms_MultiYear_FinalYear_Result,2)&RIGHT(dms_MultiYear_FinalYear_Result,2)","v":"2024"},"=LEFT(dms_MultiYear_FinalYear_Result,2)&RIGHT(dms_MultiYear_FinalYear_Result,2)",null,null,null,null,null,null,null,"Line rebuild over existing route - dual circuit","Number","total spend $0s","total spend $0s","total spend $0s","total spend $0s","(per cent)",null,null,null,null,null,"Number of spans",null,null,"number","(per cent)",null,null,null,null,null,"HV","Network business"]
[null,"Reset","REGULATORY REPORTING STATEMENT",null,{"$f":"LEFT(dms_MultiYear_FinalYear_Result,2)&RIGHT(dms_MultiYear_FinalYear_Result,2)","v":"2024"},"=LEFT(dms_MultiYear_FinalYear_Result,2)&RIGHT(dms_MultiYear_FinalYear_Result,2)",null,"Formula errors are OK",null,null,null,null,null,"Reconductor - Single circuit","Number","net circuit km added","net circuit km added","net circuit km added","net circuit km added",null,null,null,null,null,null,"Years",null,null,"number",null,null,null,null,null,null,"Zone substation","Third party"]
[null,"RFM","ROLL FORWARD MODEL",null,{"$f":"LEFT(dms_CRCP_FinalYear_Result,2)&RIGHT(dms_CRCP_FinalYear_Result,2)","v":"2019"},"=LEFT(dms_CRCP_FinalYear_Result,2)&RIGHT(dms_CRCP_FinalYear_Result,2)",null,null,null,null,null,null,null,"Reconductor - Dual circuit","Number","total spend $0s","total spend $0s","total spend $0s","total spend $0s",null,null,null,null,null,null,"Years",null,null,"number",null,null,null,null,null,null,"Subtransmission","Unknown"]
[null,"WACC","WEIGHTED AVERAGE COST OF CAPITAL",null,{"$f":"LEFT(dms_MultiYear_FinalYear_Result,2)&RIGHT(dms_MultiYear_FinalYear_Result,2)","v":"2024"},"=LEFT(dms_MultiYear_FinalYear_Result,2)&RIGHT(dms_MultiYear_FinalYear_Result,2)",null,null,null,null,null,null,null,"Other",null,"net circuit km added","net circuit km added","net circuit km added","net circuit km added",null,null,null,null,null,null,"Trees",null,null,"number",null,null,null,null,null,"Other","insert description of 'other'","Vegetation"]
[null,null,null,null,null,null,null,null,null,null,null,null,null,null,null,"total spend $0s","total spend $0s","total spend $0s","total spend $0s",null,null,null,null,null,null,"Trees",null,null,"number",null,null,null,null,null,"Overloads","-","Weather"]
[null,"dms_DataQuality_List",null,null,null,null,null,null,null,null,null,null,null,null,null,"0's",null,"$0s",null,null,null,null,null,null,null,"Defects",null,null,"number",null,null,null,null,null,"Planned","-","2 - STPIS Exclusion (3.3)(a)"]
[null,"Actual",null,null,null,null,null,null,null,null,null,null,null,null,null,"0's",null,null,null,null,null,null,null,null,null,"Defects",null,null,"number",null,null,null,null,null,"Network business","Network error","3 - STPIS Exclusion (3.3)(a)"]
[null,"Estimate",null,null,null,null,null,null,null,null,null,null,null,null,null,"0's",null,null,null,null,null,null,null,null,null,"Spans",null,null,"number",null,null,null,null,null,null,"Switching and protection error","4 - STPIS Exclusion (3.3)(a)"]
[null,"Consolidated",null,null,null,null,null,null,null,null,null,null,null,null,null,"$0s",null,null,null,null,null,null,null,null,null,"km",null,null,"(per cent)",null,null,null,null,null,"Third party","Fire","5 - STPIS Exclusion (3.3)(a)"]
[null,"Recast",null,null,null,null,null,null,null,null,null,null,null,null,null,null,null,null,null,null,null,null,null,null,null,"Spans",null,null,"(per cent)","",null,null,null,null,null,"Other","6 - STPIS Exclusion (3.3)(a)"]
[null,"Public",null,null,null,null,null,null,null,null,null,null,null,null,null,null,null,null,null,null,null,null,null,null,null,null,null,null,null,null,null,null,null,null,null,"Dig-in","7 - STPIS Exclusion (3.3)(a)"]
[null,null,null,null,null,null,null,null,null,null,null,null,null,null,null,null,null,null,null,null,null,null,null,null,null,null,null,null,null,null,null,null,null,null,null,"Unauthorised access"]
[null,"For all files either AER or business needs to be able to specify the type of submission","For PTRM & RFM templates we must provide a choice in case they change their form of control - otherwise it is drawn from the business specific lookup table above.",null,null,null,null,null,null,null,null,null,null,null,"For PTRM files - this field set the text for the named range \"DMS_Xfactor\" which in all cases is simply the text \"x factors\" - this saves putting in each old gas PTRM file ",null,null,null,null,null,null,null,"for TNSP only",null,null,null,null,null,null,null,null,null,null,null,null,"Vehicle impact"]
[null,"dms_SourceList","dms_FormControl_Choices",null,null,null,null,null,null,null,null,null,null,null,"DMS_Xfactor",null,null,null,null,null,null,null,"dms_030601_01_UOM",null,"dms_030701_01_UOM","dms_030702_01_UOM",null,null,null,null,null,null,null,null,"Unknown","Unknown"]
[null,"After appeal","Revenue cap",null,null,null,null,null,null,null,null,null,null,null,"x factors",null,null,null,null,null,null,null,"%",null,"Number of spans","km",null,null,null,null,null,null,null,null,"Vegetation","Blow-in/Fall-in - NSP responsibility"]
[null,"Draft decision","Revenue yield",null,null,null,null,null,null,null,null,null,null,null,null,null,null,null,null,null,null,null,"number",null,"Years","%",null,null,null,null,null,null,null,null,null,"Grow-in - NSP responsibility"]
[null,"Final decision","Weighted average price cap",null,null,null,null,null,null,null,null,null,null,null,null,null,null,null,null,null,null,null,"number",null,"Trees","km",null,null,null,null,null,null,null,null,null,"Blow-in/Fall-in - Other responsible party"]
[null,"PTRM update 1",null,null,null,null,null,null,null,null,null,null,null,null,null,null,null,null,null,null,null,null,"%",null,"Defects","number",null,null,null,null,null,null,null,null,null,"Grow-in - Other responsible party"]
[null,"PTRM update 2",null,null,null,null,null,null,null,null,null,null,null,null,null,null,null,null,null,null,null,null,"number",null,"Number of spans",null,null,null,null,null,null,null,null,null,"Weather"]
[null,"PTRM update 3",null,null,null,null,null,null,null,null,null,null,null,null,null,null,null,null,null,null,null,null,"number",null,"km",null,null,null,null,null,null,null,null,null,"2 - STPIS Exclusion (3.3)(a)"]
[null,"PTRM update 4",null,null,null,null,null,null,null,null,null,null,null,null,null,null,null,null,null,null,null,null,"%",null,"km",null,null,null,null,null,null,null,null,null,"3 - STPIS Exclusion (3.3)(a)"]
[null,"PTRM update 5",null,null,null,null,null,null,null,null,null,null,null,null,null,null,null,null,null,null,null,null,"number",null,"Number of spans",null,null,null,null,null,null,null,null,null,"4 - STPIS Exclusion (3.3)(a)"]
[null,"PTRM update 6",null,null,null,null,null,null,null,null,null,null,null,null,null,null,null,null,null,null,null,null,"number",null,null,null,null,null,null,null,null,null,null,null,"5 - STPIS Exclusion (3.3)(a)"]
[null,"PTRM update 7",null,null,null,null,null,null,null,null,null,null,null,null,null,null,null,null,null,null,null,null,"%",null,null,null,null,null,null,null,null,null,null,null,"6 - STPIS Exclusion (3.3)(a)"]
[null,"Regulatory proposal",null,null,null,null,null,null,null,null,null,null,null,null,null,null,null,null,null,null,null,null,"number",null,null,null,null,null,null,null,null,null,null,null,"7 - STPIS Exclusion (3.3)(a)"]
[null,"Reporting",null,null,null,null,null,null,null,null,null,null,null,null,null,null,null,null,null,null,null,null,"%"]
[null,"Revised regulatory proposal",null,null,null,null,null,null,null,null,null,null,null,null,null,null,null,null,null,null,null,null,"number"]
[null,null,null,null,null,null,null,null,null,null,null,null,null,null,null,null,null,null,null,null,null,null,"%"]
[null,null,null,null,null,null,null,null,null,null,null,null,null,null,null,null,null,null,null,null,null,null,"number"]
[]
[]
[]
[null,"These are indeces and lookup values for various dates. All step from the value placed in FRCP_y1 on the business and other details worksheet",null,null,null,null,null,null,null,null,null,"These date tables are currently used in the Recast templates to provide column headings and conditional formatting"]
[null,"dms_FRCPlength_Num_List","dms_FinalYear_List","dms_CRCPlength_Num_List","dms_CFinalYear_List","dms_FRCP_years",null,"dms_CRCP_years",null,"dms_CRCP_index",null,"CRY from input cell on business sheet","CRY - financial","dms_FinYears","CRY calendar","dms_CalYears"]
[null,1,"dms_FRCP_y1",1,"CRCP_y1",{"$f":"FRCP_y1","v":"2019-20"},"dms_FRCP_y1",{"$f":"IF(dms_RPT=\"financial\",VALUE(LEFT(dms_FRCP_y1,4)-1)&\"-\"&TEXT(VALUE(MID(dms_FRCP_y1,3,2)),\"00\"),VALUE(LEFT(dms_FRCP_y1,4)-1))","v":"2018-19"},"dms_CRCP_yZ",1,null,{"$f":"CRY","v":"2019-20"},{"$f":"VALUE(LEFT(CRY,4))&\"-\"&TEXT(MID(CRY,3,2)+1,\"00\")","v":"2019-20"},"dms_CRYf_y1",{"$f":"VALUE(LEFT(CRY,4)+1)","v":2020},"dms_CRYc_y1"]
[null,2,"dms_FRCP_y2",2,"CRCP_y2",{"$f":"IF(dms_RPT=\"financial\",VALUE(LEFT(dms_FRCP_y1,4)+1)&\"-\"&TEXT(VALUE(RIGHT(dms_FRCP_y1,2)+1),\"00\"),VALUE(LEFT(dms_FRCP_y1,4)+1))","v":"2020-21"},"dms_FRCP_y2",{"$f":"IF(dms_RPT=\"financial\",VALUE(LEFT(dms_CRCP_yZ,4)-1)&\"-\"&TEXT(VALUE(MID(dms_CRCP_yZ,3,2)),\"00\"),VALUE(LEFT(dms_CRCP_yZ,4)-1))","v":"2017-18"},"dms_CRCP_yY",2,null,null,{"$f":"VALUE(LEFT(dms_CRYf_y1,4)+1)&\"-\"&TEXT(MID(dms_CRYf_y1,3,2)+2,\"00\")","v":"2020-21"},"dms_CRYf_y2",{"$f":"VALUE(LEFT(dms_CRYc_y1,4)+1)","v":2021},"dms_CRYc_y2"]
[null,3,"dms_FRCP_y3",3,"CRCP_y3",{"$f":"IF(dms_RPT=\"financial\",VALUE(LEFT(dms_FRCP_y2,4)+1)&\"-\"&TEXT(VALUE(RIGHT(dms_FRCP_y2,2)+1),\"00\"),VALUE(LEFT(dms_FRCP_y2,4)+1))","v":"2021-22"},"dms_FRCP_y3",{"$f":"IF(dms_RPT=\"financial\",VALUE(LEFT(dms_CRCP_yY,4)-1)&\"-\"&TEXT(VALUE(MID(dms_CRCP_yY,3,2)),\"00\"),VALUE(LEFT(dms_CRCP_yY,4)-1))","v":"2016-17"},"dms_CRCP_yX",3,null,null,{"$f":"VALUE(LEFT(dms_CRYf_y2,4)+1)&\"-\"&TEXT(MID(dms_CRYf_y2,3,2)+2,\"00\")","v":"2021-22"},"dms_CRYf_y3",{"$f":"VALUE(LEFT(dms_CRYc_y2,4)+1)","v":2022},"dms_CRYc_y3"]
[null,4,"dms_FRCP_y4",4,"CRCP_y4",{"$f":"IF(dms_RPT=\"financial\",VALUE(LEFT(dms_FRCP_y3,4)+1)&\"-\"&TEXT(VALUE(RIGHT(dms_FRCP_y3,2)+1),\"00\"),VALUE(LEFT(dms_FRCP_y3,4)+1))","v":"2022-23"},"dms_FRCP_y4",{"$f":"IF(dms_RPT=\"financial\",VALUE(LEFT(dms_CRCP_yX,4)-1)&\"-\"&TEXT(VALUE(MID(dms_CRCP_yX,3,2)),\"00\"),VALUE(LEFT(dms_CRCP_yX,4)-1))","v":"2015-16"},"dms_CRCP_yW",4,null,null,{"$f":"VALUE(LEFT(dms_CRYf_y3,4)+1)&\"-\"&TEXT(MID(dms_CRYf_y3,3,2)+2,\"00\")","v":"2022-23"},"dms_CRYf_y4",{"$f":"VALUE(LEFT(dms_CRYc_y3,4)+1)","v":2023},"dms_CRYc_y4"]
[null,5,"dms_FRCP_y5",5,"CRCP_y5",{"$f":"IF(dms_RPT=\"financial\",VALUE(LEFT(dms_FRCP_y4,4)+1)&\"-\"&TEXT(VALUE(RIGHT(dms_FRCP_y4,2)+1),\"00\"),VALUE(LEFT(dms_FRCP_y4,4)+1))","v":"2023-24"},"dms_FRCP_y5",{"$f":"IF(dms_RPT=\"financial\",VALUE(LEFT(dms_CRCP_yW,4)-1)&\"-\"&TEXT(VALUE(MID(dms_CRCP_yW,3,2)),\"00\"),VALUE(LEFT(dms_CRCP_yW,4)-1))","v":"2014-15"},"dms_CRCP_yV",5,null,null,{"$f":"VALUE(LEFT(dms_CRYf_y4,4)+1)&\"-\"&TEXT(MID(dms_CRYf_y4,3,2)+2,\"00\")","v":"2023-24"},"dms_CRYf_y5",{"$f":"VALUE(LEFT(dms_CRYc_y4,4)+1)","v":2024},"dms_CRYc_y5"]
[null,6,"dms_FRCP_y6",6,"CRCP_y6",{"$f":"IF(dms_RPT=\"financial\",VALUE(LEFT(dms_FRCP_y5,4)+1)&\"-\"&TEXT(VALUE(RIGHT(dms_FRCP_y5,2)+1),\"00\"),VALUE(LEFT(dms_FRCP_y5,4)+1))","v":"2024-25"},"dms_FRCP_y6",{"$f":"IF(dms_RPT=\"financial\",VALUE(LEFT(dms_CRCP_yV,4)-1)&\"-\"&TEXT(VALUE(MID(dms_CRCP_yV,3,2)),\"00\"),VALUE(LEFT(dms_CRCP_yV,4)-1))","v":"2013-14"},"dms_CRCP_yU",6,null,null,{"$f":"VALUE(LEFT(dms_CRYf_y5,4)+1)&\"-\"&TEXT(MID(dms_CRYf_y5,3,2)+2,\"00\")","v":"2024-25"},"dms_CRYf_y6",{"$f":"VALUE(LEFT(dms_CRYc_y5,4)+1)","v":2025},"dms_CRYc_y6"]
[null,7,"dms_FRCP_y7",7,"CRCP_y7",{"$f":"IF(dms_RPT=\"financial\",VALUE(LEFT(dms_FRCP_y6,4)+1)&\"-\"&TEXT(VALUE(RIGHT(dms_FRCP_y6,2)+1),\"00\"),VALUE(LEFT(dms_FRCP_y6,4)+1))","v":"2025-26"},"dms_FRCP_y7",{"$f":"IF(dms_RPT=\"financial\",VALUE(LEFT(dms_CRCP_yU,4)-1)&\"-\"&TEXT(VALUE(MID(dms_CRCP_yU,3,2)),\"00\"),VALUE(LEFT(dms_CRCP_yU,4)-1))","v":"2012-13"},"dms_CRCP_yT",7,null,null,{"$f":"VALUE(LEFT(dms_CRYf_y6,4)+1)&\"-\"&TEXT(MID(dms_CRYf_y6,3,2)+2,\"00\")","v":"2025-26"},"dms_CRYf_y7",{"$f":"VALUE(LEFT(dms_CRYc_y6,4)+1)","v":2026},"dms_CRYc_y7"]
[null,8,"dms_FRCP_y8",8,"CRCP_y8",{"$f":"IF(dms_RPT=\"financial\",VALUE(LEFT(dms_FRCP_y7,4)+1)&\"-\"&TEXT(VALUE(RIGHT(dms_FRCP_y7,2)+1),\"00\"),VALUE(LEFT(dms_FRCP_y7,4)+1))","v":"2026-27"},"dms_FRCP_y8",{"$f":"IF(dms_RPT=\"financial\",VALUE(LEFT(dms_CRCP_yT,4)-1)&\"-\"&TEXT(VALUE(MID(dms_CRCP_yT,3,2)),\"00\"),VALUE(LEFT(dms_CRCP_yT,4)-1))","v":"2011-12"},"dms_CRCP_yS",8,null,null,{"$f":"VALUE(LEFT(dms_CRYf_y7,4)+1)&\"-\"&TEXT(MID(dms_CRYf_y7,3,2)+2,\"00\")","v":"2026-27"},"dms_CRYf_y8",{"$f":"VALUE(LEFT(dms_CRYc_y7,4)+1)","v":2027},"dms_CRYc_y8"]
[null,9,"dms_FRCP_y9",9,"CRCP_y9",{"$f":"IF(dms_RPT=\"financial\",VALUE(LEFT(dms_FRCP_y8,4)+1)&\"-\"&TEXT(VALUE(RIGHT(dms_FRCP_y8,2)+1),\"00\"),VALUE(LEFT(dms_FRCP_y8,4)+1))","v":"2027-28"},"dms_FRCP_y9",{"$f":"IF(dms_RPT=\"financial\",VALUE(LEFT(dms_CRCP_yS,4)-1)&\"-\"&TEXT(VALUE(MID(dms_CRCP_yS,3,2)),\"00\"),VALUE(LEFT(dms_CRCP_yS,4)-1))","v":"2010-11"},"dms_CRCP_yR",9,null,null,{"$f":"VALUE(LEFT(dms_CRYf_y8,4)+1)&\"-\"&TEXT(MID(dms_CRYf_y8,3,2)+2,\"00\")","v":"2027-28"},"dms_CRYf_y9",{"$f":"VALUE(LEFT(dms_CRYc_y8,4)+1)","v":2028},"dms_CRYc_y9"]
[null,10,"dms_FRCP_y10",10,"CRCP_y10",{"$f":"IF(dms_RPT=\"financial\",VALUE(LEFT(dms_FRCP_y9,4)+1)&\"-\"&TEXT(VALUE(RIGHT(dms_FRCP_y9,2)+1),\"00\"),VALUE(LEFT(dms_FRCP_y9,4)+1))","v":"2028-29"},"dms_FRCP_y10",{"$f":"IF(dms_RPT=\"financial\",VALUE(LEFT(dms_CRCP_yR,4)-1)&\"-\"&TEXT(VALUE(MID(dms_CRCP_yR,3,2)),\"00\"),VALUE(LEFT(dms_CRCP_yR,4)-1))","v":"2009-10"},"dms_CRCP_yQ",10,null,null,{"$f":"VALUE(LEFT(dms_CRYf_y9,4)+1)&\"-\"&TEXT(MID(dms_CRYf_y9,3,2)+2,\"00\")","v":"2028-29"},"dms_CRYf_y10",{"$f":"VALUE(LEFT(dms_CRYc_y9,4)+1)","v":2029},"dms_CRYc_y10"]
[null,11,"dms_FRCP_y11",11,"CRCP_y11",{"$f":"IF(dms_RPT=\"financial\",VALUE(LEFT(dms_FRCP_y10,4)+1)&\"-\"&TEXT(VALUE(RIGHT(dms_FRCP_y10,2)+1),\"00\"),VALUE(LEFT(dms_FRCP_y10,4)+1))","v":"2029-30"},"dms_FRCP_y11",{"$f":"IF(dms_RPT=\"financial\",VALUE(LEFT(dms_CRCP_yQ,4)-1)&\"-\"&TEXT(VALUE(MID(dms_CRCP_yQ,3,2)),\"00\"),VALUE(LEFT(dms_CRCP_yQ,4)-1))","v":"2008-09"},"dms_CRCP_yP",11,null,null,{"$f":"VALUE(LEFT(dms_CRYf_y10,4)+1)&\"-\"&TEXT(MID(dms_CRYf_y10,3,2)+2,\"00\")","v":"2029-30"},"dms_CRYf_y11",{"$f":"VALUE(LEFT(dms_CRYc_y10,4)+1)","v":2030},"dms_CRYc_y11"]
[null,12,"dms_FRCP_y12",12,"CRCP_y12",{"$f":"IF(dms_RPT=\"financial\",VALUE(LEFT(dms_FRCP_y11,4)+1)&\"-\"&TEXT(VALUE(RIGHT(dms_FRCP_y11,2)+1),\"00\"),VALUE(LEFT(dms_FRCP_y11,4)+1))","v":"2030-31"},"dms_FRCP_y12",{"$f":"IF(dms_RPT=\"financial\",VALUE(LEFT(dms_CRCP_yP,4)-1)&\"-\"&TEXT(VALUE(MID(dms_CRCP_yP,3,2)),\"00\"),VALUE(LEFT(dms_CRCP_yP,4)-1))","v":"2007-08"},"dms_CRCP_yO",12,null,null,{"$f":"VALUE(LEFT(dms_CRYf_y11,4)+1)&\"-\"&TEXT(MID(dms_CRYf_y11,3,2)+2,\"00\")","v":"2030-31"},"dms_CRYf_y12",{"$f":"VALUE(LEFT(dms_CRYc_y11,4)+1)","v":2031},"dms_CRYc_y12"]
[null,13,"dms_FRCP_y13",13,"CRCP_y13",{"$f":"IF(dms_RPT=\"financial\",VALUE(LEFT(dms_FRCP_y12,4)+1)&\"-\"&TEXT(VALUE(RIGHT(dms_FRCP_y12,2)+1),\"00\"),VALUE(LEFT(dms_FRCP_y12,4)+1))","v":"2031-32"},"dms_FRCP_y13",{"$f":"IF(dms_RPT=\"financial\",VALUE(LEFT(dms_CRCP_yO,4)-1)&\"-\"&TEXT(VALUE(MID(dms_CRCP_yO,3,2)),\"00\"),VALUE(LEFT(dms_CRCP_yO,4)-1))","v":"2006-07"},"dms_CRCP_yN",13,null,null,{"$f":"VALUE(LEFT(dms_CRYf_y12,4)+1)&\"-\"&TEXT(MID(dms_CRYf_y12,3,2)+2,\"00\")","v":"2031-32"},"dms_CRYf_y13",{"$f":"VALUE(LEFT(dms_CRYc_y12,4)+1)","v":2032},"dms_CRYc_y13"]
[null,14,"dms_FRCP_y14",14,"CRCP_y14",{"$f":"IF(dms_RPT=\"financial\",VALUE(LEFT(dms_FRCP_y13,4)+1)&\"-\"&TEXT(VALUE(RIGHT(dms_FRCP_y13,2)+1),\"00\"),VALUE(LEFT(dms_FRCP_y13,4)+1))","v":"2032-33"},"dms_FRCP_y14",{"$f":"IF(dms_RPT=\"financial\",VALUE(LEFT(dms_CRCP_yN,4)-1)&\"-\"&TEXT(VALUE(MID(dms_CRCP_yN,3,2)),\"00\"),VALUE(LEFT(dms_CRCP_yN,4)-1))","v":"2005-06"},"dms_CRCP_yM",14,null,null,{"$f":"VALUE(LEFT(dms_CRYf_y13,4)+1)&\"-\"&TEXT(MID(dms_CRYf_y13,3,2)+2,\"00\")","v":"2032-33"},"dms_CRYf_y14",{"$f":"VALUE(LEFT(dms_CRYc_y13,4)+1)","v":2033},"dms_CRYc_y14"]
[null,15,"dms_FRCP_y15",15,"CRCP_y15",{"$f":"IF(dms_RPT=\"financial\",VALUE(LEFT(dms_FRCP_y14,4)+1)&\"-\"&TEXT(VALUE(RIGHT(dms_FRCP_y14,2)+1),\"00\"),VALUE(LEFT(dms_FRCP_y14,4)+1))","v":"2033-34"},"dms_FRCP_y15",{"$f":"IF(dms_RPT=\"financial\",VALUE(LEFT(dms_CRCP_yM,4)-1)&\"-\"&TEXT(VALUE(MID(dms_CRCP_yM,3,2)),\"00\"),VALUE(LEFT(dms_CRCP_yM,4)-1))","v":"2004-05"},"dms_CRCP_yL",15,null,null,{"$f":"VALUE(LEFT(dms_CRYf_y14,4)+1)&\"-\"&TEXT(MID(dms_CRYf_y14,3,2)+2,\"00\")","v":"2033-34"},"dms_CRYf_y15",{"$f":"VALUE(LEFT(dms_CRYc_y14,4)+1)","v":2034},"dms_CRYc_y15"]
[null,null,null,null,null,null,null,null,null,null,null,null,{"$f":"VALUE(LEFT(dms_CRYf_y15,4)+1)&\"-\"&TEXT(MID(dms_CRYf_y15,3,2)+2,\"00\")","v":"2034-35"},"dms_CRYf_y16",{"$f":"VALUE(LEFT(dms_CRYc_y15,4)+1)","v":2035},"dms_CRYc_y16"]
[null,"These are drop down lists for businesses to select the correct FRCP_y1 on the business and other details worksheet.\nThis also populates the column headings in the worksheets",null,null,null,null,null,null,null,null,null,null,{"$f":"VALUE(LEFT(dms_CRYf_y16,4)+1)&\"-\"&TEXT(MID(dms_CRYf_y16,3,2)+2,\"00\")","v":"2035-36"},"dms_CRYf_y17",{"$f":"VALUE(LEFT(dms_CRYc_y16,4)+1)","v":2036},"dms_CRYc_y17"]
[null,"dms_RCP_fyear_list","dms_CRY_ListF","dms_CRY_ListC","dms_RCP_cyear_list","dms_FRCP_fyear_list","dms_FRCP_ListF","dms_FRCP_ListC","dms_FRCP_cyear_list",null,null,null,{"$f":"VALUE(LEFT(dms_CRYf_y17,4)+1)&\"-\"&TEXT(MID(dms_CRYf_y17,3,2)+2,\"00\")","v":"2036-37"},"dms_CRYf_y18",{"$f":"VALUE(LEFT(dms_CRYc_y17,4)+1)","v":2037},"dms_CRYc_y18"]
[null,"dms_fy1","2006-07",2007,"dms_cy1","dms_frcp_fy1","2015-16",2016,"dms_crcp_cy1",null,null,null,{"$f":"VALUE(LEFT(dms_CRYf_y18,4)+1)&\"-\"&TEXT(MID(dms_CRYf_y18,3,2)+2,\"00\")","v":"2037-38"},"dms_CRYf_y19",{"$f":"VALUE(LEFT(dms_CRYc_y18,4)+1)","v":2038},"dms_CRYc_y19"]
[null,"dms_fy2","2007-08","2008","dms_cy2","dms_frcp_fy2","2016-17",2017,"dms_crcp_cy2",null,null,null,{"$f":"VALUE(LEFT(dms_CRYf_y19,4)+1)&\"-\"&TEXT(MID(dms_CRYf_y19,3,2)+2,\"00\")","v":"2038-39"},"dms_CRYf_y20",{"$f":"VALUE(LEFT(dms_CRYc_y19,4)+1)","v":2039},"dms_CRYc_y20"]
[null,"dms_fy3","2008-09","2009","dms_cy3","dms_frcp_fy3","2017-18",2018,"dms_crcp_cy3"]
[null,"dms_fy4","2009-10","2010","dms_cy4","dms_frcp_fy4","2018-19",2019,"dms_crcp_cy4"]
[null,"dms_fy5","2010-11","2011","dms_cy5","dms_frcp_fy5","2019-20",2020,"dms_crcp_cy5"]
[null,"dms_fy6","2011-12","2012","dms_cy6","dms_frcp_fy6","2020-21",2021,"dms_crcp_cy6"]
[null,"dms_fy7","2012-13","2013","dms_cy7","dms_frcp_fy7","2021-22",2022,"dms_crcp_cy7"]
[null,"dms_fy8","2013-14","2014","dms_cy8","dms_frcp_fy8","2022-23",2023,"dms_crcp_cy8",null,null,"2005-06","2006"]
[null,"dms_fy9","2014-15","2015","dms_cy9","dms_frcp_fy9","2023-24",2024,"dms_crcp_cy9",null,null,"2006-07","2007"]
[null,"dms_fy10","2015-16","2016","dms_cy10","dms_frcp_fy10","2024-25",2025,"dms_crcp_cy10",null,null,"2007-08","2008"]
[null,"dms_fy11","2016-17","2017","dms_cy11","dms_frcp_fy11","2025-26",2026,"dms_crcp_cy11",null,null,"2008-09","2009"]
[null,"dms_fy12","2017-18","2018","dms_cy12","dms_frcp_fy12","2026-27",2027,"dms_crcp_cy12",null,null,"2009-10",2010]
[null,"dms_fy13","2018-19",2019,"dms_cy13","dms_frcp_fy13","2027-28",2028,"dms_crcp_cy13",null,null,"2010-11",2011]
[null,"dms_fy14","2019-20","2020","dms_cy14","dms_frcp_fy14","2028-29",2029,"dms_crcp_cy14",null,null,"2011-12",2012]
[null,"dms_fy15","2019-20","2020","dms_cy15","dms_frcp_fy15","2029-30",2030,"dms_crcp_cy15",null,null,"2012-13",2013]
[null,"dms_fy16","2020-21","2021","dms_cy16",null,null,null,null,null,null,"2013-14",2014]
[null,"dms_fy17","2021-22","2022","dms_cy17",null,null,null,null,null,null,"2014-15",2015]
[null,"dms_fy18","2022-23","2023","dms_cy18",null,null,null,null,null,null,"2015-16",2016]
[null,"dms_fy19","2023-24","2024","dms_cy19",null,null,null,null,null,null,"2016-17",2017]
[null,"dms_fy20","2024-25","2025","dms_cy20",null,null,null,null,null,null,"2017-18",2018]
[null,null,null,null,null,null,null,null,null,null,null,"2018-19",2019]
[null,null,null,null,null,null,null,null,null,null,null,"2019-20",2020]
[null,null,null,null,null,null,null,null,null,null,null,"2020-21",2021]
[null,null,null,null,null,null,null,null,null,null,null,"2021-22",2022]
[null,null,null,null,null,null,null,null,null,null,null,"2022-23",2023]
[null,null,null,null,null,null,null,null,null,null,null,"2023-24",2024]
[null,null,null,null,null,null,null,null,null,null,null,"2024-25",2025]
[null,null,null,null,null,null,null,null,null,null,null,"2025-26",2026]
[null,null,null,null,null,null,null,null,null,null,null,"2026-27",2027]
[null,null,null,null,null,null,null,null,null,null,null,"2027-28",2028]
[null,null,null,null,null,null,null,null,null,null,null,"2028-29",2029]
[null,null,null,null,null,null,null,null,null,null,null,"2029-30",2030]
[null,null,null,null,null,null,null,null,null,null,null,"2030-31",2031]
[null,null,null,null,null,null,null,null,null,null,null,"2031-32",2032]
[null,null,null,null,null,null,null,null,null,null,null,"2032-33",2033]
[null,null,null,null,null,null,null,null,null,null,null,"2033-34",2034]
[null,null,null,null,null,null,null,null,null,null,null,"2034-35",2035]
[null,null,null,null,null,null,null,null,null,null,null,"2035-36",2036]

{"sheet":"Business & other details","index":1,"n_rows":95,"n_cols":12,"rows_kept":95,"cut":false,"hidden":false,"merged":[[84,4,84,8],[18,4,18,7],[19,2,19,3],[19,4,19,7],[22,2,22,3],[22,4,22,7],[23,4,23,7],[24,2,24,3],[24,4,24,7],[32,1,32,8],[51,2,51,3],[53,2,53,8],[7,1,7,8],[11,1,11,8],[13,2,13,4],[14,2,14,4],[17,2,17,3],[17,4,17,7]]}
[null,{"$f":"IF(dms_DataQuality=\"backcast\",INDEX(dms_Worksheet_List,MATCH(dms_Model,dms_Model_List))&\" BACKCAST\",INDEX(dms_Worksheet_List,MATCH(dms_Model,dms_Model_List)))","v":"REGULATORY REPORTING STATEMENT"}]
[null,{"$f":"INDEX(dms_TradingNameFull_List,MATCH(dms_TradingName,dms_TradingName_List))","v":"Essential Energy"}]
[null,{"$f":"IF(SUM(dms_SingleYear_Model)>0,CONCATENATE(CRY,\" to \",FRY),CONCATENATE(FRCP_y1,\" to \",dms_MultiYear_FinalYear_Result))","v":"2019-20 to 2023-24"}]
[null,"BUSINESS & OTHER DETAILS"]
[]
[]
[null,"Instructions"]
[null,"Complete the following business details regulatory template before entering data or values in any other regulatory template. This regulatory template is linked to other cells within the spreadsheet and automatically generates column headings and conditional formatting to distinguish business specific input and non-input cells. "]
[]
[null,"SUBMISSION PARTICULARS INPUT SHEETS"]
[]
[null,"ENTITY DETAILS"]
[]
[null,"Short name","Essential Energy",null,null,"Select business name from drop down list first"]
[null,"ACN / ABN",{"$f":"INDEX(dms_ABN_List,MATCH(dms_TradingName,dms_TradingName_List))","v":37428185226}]
[]
[]
[null,"Business address","Address 1",null,{"$f":"INDEX(dms_Addr1_List,MATCH(dms_TradingName,dms_TradingName_List))","v":"8 Buller Street"}]
[null,null,null,"Address 2",{"$f":"IF(ISBLANK(INDEX(dms_Addr2_List,MATCH(dms_TradingName,dms_TradingName_List))),\"\",INDEX(dms_Addr2_List,MATCH(dms_TradingName,dms_TradingName_List)))","v":""}]
[null,null,"Suburb",null,{"$f":"INDEX(dms_Suburb_List,MATCH(dms_TradingName,dms_TradingName_List))","v":"PORT MACQUARIE"}]
[null,null,null,"State",{"$f":"INDEX(dms_State_List,MATCH(dms_TradingName,dms_TradingName_List))","v":"NSW"},"p/code",{"$f":"INDEX(dms_PostCode_List,MATCH(dms_TradingName,dms_TradingName_List))","v":"2444"}]
[]
[null,"Postal address","Address 1",null,{"$f":"INDEX(dms_PAddr1_List,MATCH(dms_TradingName,dms_TradingName_List))","v":"PO Box 5730"}]
[null,null,null,"Address 2",{"$f":"IF(ISBLANK(INDEX(dms_PAddr2_List,MATCH(dms_TradingName,dms_TradingName_List))),\"\",INDEX(dms_PAddr2_List,MATCH(dms_TradingName,dms_TradingName_List)))","v":""}]
[null,null,"Suburb",null,{"$f":"INDEX(dms_PSuburb_List,MATCH(dms_TradingName,dms_TradingName_List))","v":"PORT MACQUARIE"}]
[null,null,null,"State",{"$f":"INDEX(dms_PState_List,MATCH(dms_TradingName,dms_TradingName_List))","v":"NSW"},"p/code",{"$f":"INDEX(dms_PPostCode_List,MATCH(dms_TradingName,dms_TradingName_List))","v":"2444"}]
[]
[]
[null,"Contact name/s","Natalie Lindsay"]
[null,"Contact phone/s","02 6589 8419"]
[null,"Contact email address/s","natalie.lindsay@essentialenergy.com.au"]
[]
[null,"REGULATORY CONTROL PERIODS"]
[]
[null,"Forthcoming regulatory control period","2019-20",{"$f":"dms_FRCP_y2","v":"2020-21"},{"$f":"dms_FRCP_y3","v":"2021-22"},{"$f":"dms_FRCP_y4","v":"2022-23"},{"$f":"dms_FRCP_y5","v":"2023-24"},{"$f":"dms_FRCP_y6","v":"2024-25"},{"$f":"dms_FRCP_y7","v":"2025-26"},{"$f":"dms_FRCP_y8","v":"2026-27"},{"$f":"dms_FRCP_y9","v":"2027-28"},{"$f":"dms_FRCP_y10","v":"2028-29"}]
[]
[]
[null,"Current regulatory control period",{"$f":"dms_CRCP_FirstYear_Result","v":"2014-15"},{"$f":"IF(dms_RPT=\"financial\",VALUE(LEFT(CRCP_y1,4)+1)&\"-\"&TEXT(MID(CRCP_y1,3,2)+2,\"00\"),VALUE(LEFT(CRCP_y1,4)+1))","v":"2015-16"},{"$f":"IF(dms_RPT=\"financial\",VALUE(LEFT(CRCP_y2,4)+1)&\"-\"&TEXT(VALUE(MID(CRCP_y2,3,2)+2),\"00\"),VALUE(LEFT(CRCP_y2,4)+1))","v":"2016-17"},{"$f":"IF(dms_RPT=\"financial\",VALUE(LEFT(CRCP_y3,4)+1)&\"-\"&TEXT(VALUE(MID(CRCP_y3,3,2)+2),\"00\"),VALUE(LEFT(CRCP_y3,4)+1))","v":"2017-18"},{"$f":"IF(dms_RPT=\"financial\",VALUE(LEFT(CRCP_y4,4)+1)&\"-\"&TEXT(VALUE(MID(CRCP_y4,3,2)+2),\"00\"),VALUE(LEFT(CRCP_y4,4)+1))","v":"2018-19"},{"$f":"IF(dms_RPT=\"financial\",VALUE(LEFT(CRCP_y5,4)+1)&\"-\"&TEXT(VALUE(MID(CRCP_y5,3,2)+2),\"00\"),VALUE(LEFT(CRCP_y5,4)+1))","v":"2019-20"},{"$f":"IF(dms_RPT=\"financial\",VALUE(LEFT(CRCP_y6,4)+1)&\"-\"&TEXT(VALUE(MID(CRCP_y6,3,2)+2),\"00\"),VALUE(LEFT(CRCP_y6,4)+1))","v":"2020-21"},{"$f":"IF(dms_RPT=\"financial\",VALUE(LEFT(CRCP_y7,4)+1)&\"-\"&TEXT(VALUE(MID(CRCP_y7,3,2)+2),\"00\"),VALUE(LEFT(CRCP_y7,4)+1))","v":"2021-22"},{"$f":"IF(dms_RPT=\"financial\",VALUE(LEFT(CRCP_y8,4)+1)&\"-\"&TEXT(VALUE(MID(CRCP_y8,3,2)+2),\"00\"),VALUE(LEFT(CRCP_y8,4)+1))","v":"2022-23"},{"$f":"IF(dms_RPT=\"financial\",VALUE(LEFT(CRCP_y9,4)+1)&\"-\"&TEXT(VALUE(MID(CRCP_y9,3,2)+2),\"00\"),VALUE(LEFT(CRCP_y9,4)+1))","v":"2023-24"}]
[]
[]
[null,"Previous regulatory control period",{"$f":"IF(dms_RPT=\"financial\",VALUE(LEFT(PRCP_y2,4)-1)&\"-\"&TEXT(VALUE(MID(PRCP_y2,3,2)),\"00\"),VALUE(LEFT(PRCP_y2,4)-1))","v":"2009-10"},{"$f":"IF(dms_RPT=\"financial\",VALUE(LEFT(PRCP_y3,4)-1)&\"-\"&TEXT(VALUE(MID(PRCP_y3,3,2)),\"00\"),VALUE(LEFT(PRCP_y3,4)-1))","v":"2010-11"},{"$f":"IF(dms_RPT=\"financial\",VALUE(LEFT(PRCP_y4,4)-1)&\"-\"&TEXT(VALUE(MID(PRCP_y4,3,2)),\"00\"),VALUE(LEFT(PRCP_y4,4)-1))","v":"2011-12"},{"$f":"IF(dms_RPT=\"financial\",VALUE(LEFT(PRCP_y5,4)-1)&\"-\"&TEXT(VALUE(RIGHT(PRCP_y5,2)-1),\"00\"),VALUE(LEFT(PRCP_y5,4)-1))","v":"2012-13"},{"$f":"IF(dms_RPT=\"financial\",VALUE(LEFT(CRCP_y1,4)-1)&\"-\"&TEXT(VALUE(RIGHT(CRCP_y1,2)-1),\"00\"),VALUE(LEFT(CRCP_y1,4)-1))","v":"2013-14"}]
[]
[]
[null,"Commencing regulatory year","2019-20","CRY"]
[]
[null,"Last completed regulatory year","2023-24","dms_FinalYear"]
[]
[]
[null,null,"DELETE NR 'CRY' IF NOT AN ANNUAL RIN (EB, CA , ARR)"]
[null,null,"APPLY NR 'CRY' IF AN ANNUAL RIN (EB, CA , ARR) - including multi year annual RINs eg. Recast CA. EB"]
[]
[null,"Source","Regulatory proposal",null,"Please select the correct submission type from the dropdown list."]
[null,"Data quality (actual, estimate, public, consolidated)","Consolidated"]
[null,"Amended RIN submission - amendment reason"]
[null,"Submission Date","dd/mm/yyyy","dms_SubmissionDate","Please enter date this file submitted to AER (dd/mm/yyyy)"]
[null,"EBSS - First application of scheme in forthcoming period?","No"]
[null,"Sector",{"$f":"INDEX(dms_Sector_List,MATCH(dms_TradingName,dms_TradingName_List))","v":"Electricity"},"dms_Sector","=INDEX(dms_Sector_List,MATCH(dms_TradingName,dms_TradingName_List))"]
[null,"Segment",{"$f":"INDEX(dms_Segment_List,MATCH(dms_TradingName,dms_TradingName_List))","v":"Distribution"},"dms_Segment","=INDEX(dms_Segment_List,MATCH(dms_TradingName,dms_TradingName_List))"]
[null,"Regulatory Year Ending",{"$f":"IF(dms_MultiYear_Flag=1,LEFT(dms_Specified_FinalYear,2)&RIGHT(dms_Specified_FinalYear,2),INDEX(dms_RYE_Formula_Result,MATCH(dms_Model,dms_Model_List)))","v":"2024"},"dms_RYE","=IF(dms_MultiYear_Flag=1,LEFT(dms_Specified_FinalYear,2)&RIGHT(dms_Specified_FinalYear,2),INDEX(dms_RYE_Formula_Result,MATCH(dms_Model,dms_Model_List)))"]
[null,"Reporting Period Type",{"$f":"INDEX(dms_RPT_List,MATCH(dms_TradingName,dms_TradingName_List))","v":"Financial"},"dms_RPT","=INDEX(dms_RPT_List,MATCH(dms_TradingName,dms_TradingName_List))"]
[null,"Model or RIN Type","Reset","dms_Model","Drop down selection"]
[null,"Security Classification","Public","dms_Classification","Always Public"]
[null,"Template - version no.",5,"dms_TemplateNumber"]
[null,"Dollar $ real month",{"$f":"INDEX(dms_RPTMonth_List,MATCH(dms_TradingName,dms_TradingName_List))","v":"June"},"dms_RPTMonth","=INDEX(dms_RPTMonth_List,MATCH(dms_TradingName,dms_TradingName_List))"]
[null,"Dollar $ real  (the last month before the FRCP_y1)",{"$f":"CONCATENATE(dms_RPTMonth)&\" \"&VALUE((LEFT(dms_CRCP_FinalYear_Result,2)&RIGHT(dms_CRCP_FinalYear_Result,2)))","v":"June 2019"},"dms_DollarReal","=IF(SUM(dms_SingleYear_Model)>0,CONCATENATE(dms_RPTMonth)&\" \"&VALUE((LEFT(CRY,2))&RIGHT(CRY,2)),CONCATENATE(dms_RPTMonth)&\" \"&VALUE((LEFT(dms_CRCP_FinalYear_Result,2)&RIGHT(dms_CRCP_FinalYear_Result,2))))"]
[null,"Form of control",{"$f":"INDEX(dms_FormControl_List,MATCH(dms_TradingName,dms_TradingName_List))","v":"Revenue cap"},"dms_FormControl","=INDEX(dms_FormControl_List,MATCH(dms_TradingName,dms_TradingName_List))"]
[null,"RIN response - version no.",1,"dms_RINversion"]
[null,"Jurisdiction",{"$f":"INDEX(dms_JurisdictionList,MATCH(dms_TradingName,dms_TradingName_List))","v":"NSW"},"dms_Jurisdiction","=INDEX(dms_JurisdictionList,MATCH(dms_TradingName,dms_TradingName_List))"]
[null,"Backcast Multiyear EB, CA or ARR?",0,"dms_MultiYear_Flag","1=y, 0-n"]
[null,null,2013,"dms_Specified_FinalYear","The result here is returned to dms_CRCP_FinalYear_Result if dms_MultiYear_Flag is set to 1"]
[null,"Single Year Model T/F",{"$f":"IF(dms_Model=\"EB\",1,0)","v":0},"dms_EB"]
[null,null,{"$f":"IF(dms_Model=\"CA\",1,0)","v":0},"dms_CA","=dms_SingleYear_Model"]
[null,null,{"$f":"IF(dms_Model=\"ARR\",1,0)","v":0},"dms_ARR"]
[null,"Single Year Final Year Reference","CRY","dms_SingleYear_FinalYear_Ref","This is the reference for EB, CA & ARR RINs"]
[null,"Single Year Final Year Result",{"$f":"INDIRECT(dms_SingleYear_FinalYear_Ref)","v":"2019-20"},"dms_SingleYear_FinalYear_Result","=INDIRECT(dms_SingleYear_FinalYear_Ref)",null,null,null,"Formula errors OK"]
[null,"FRCP length in years",{"$f":"INDEX(dms_FRCPlength_List,MATCH(dms_TradingName,dms_TradingName_List))","v":5},"dms_FRCPlength_Num","=INDEX(dms_FRCPlength_List,MATCH(dms_TradingName,dms_TradingName_List))"]
[null,"Multi Year Final Year Reference",{"$f":"INDEX(dms_FinalYear_List,MATCH(dms_FRCPlength_Num,dms_FRCPlength_Num_List))","v":"dms_FRCP_y5"},"dms_MultiYear_FinalYear_Ref","=INDEX(dms_FinalYear_List,MATCH(dms_FRCPlength_Num,dms_FRCPlength_Num_List))"]
[null,"Multi Year Final Year Result",{"$f":"IF(dms_MultiYear_Flag=0,INDIRECT(dms_MultiYear_FinalYear_Ref),dms_Specified_FinalYear)","v":"2023-24"},"dms_MultiYear_FinalYear_Result","=IF(dms_MultiYear_Flag=0,INDIRECT(dms_MultiYear_FinalYear_Ref),dms_Specified_FinalYear)",null,null,null,"Formula errors OK"]
[null,"CRCP length in years",{"$f":"INDEX(dms_CRCPlength_List,MATCH(dms_TradingName,dms_TradingName_List))","v":5},"dms_CRCPlength_Num","=INDEX(dms_CRCPlength_List,MATCH(dms_TradingName,dms_TradingName_List))"]
[null,"CRCP Final Year Reference",{"$f":"INDEX(dms_CFinalYear_List,MATCH(dms_CRCPlength_Num,dms_CRCPlength_Num_List))","v":"CRCP_y5"},"dms_CRCP_FinalYear_Ref","=INDEX(dms_CFinalYear_List,MATCH(dms_CRCPlength_Num,dms_CRCPlength_Num_List))"]
[null,"CRCP First Year Result",{"$f":"INDEX(dms_CRCP_years,MATCH(dms_CRCPlength_Num,dms_CRCP_index))","v":"2014-15"},"dms_CRCP_FirstYear_Result","=INDEX(dms_CRCP_years,MATCH(dms_CRCPlength_Num,dms_CRCP_index))"]
[null,"CRCP Final Year Result",{"$f":"IF(dms_MultiYear_Flag=0,(IF(SUM(dms_SingleYear_Model)>0,CRY,dms_CRCP_yZ)),dms_Specified_FinalYear)","v":"2018-19"},"dms_CRCP_FinalYear_Result","=IF(dms_MultiYear_Flag=0,(IF(SUM(dms_SingleYear_Model)>0,CRY,dms_CRCP_yZ)),dms_Specified_FinalYear)"]
[null,"Table 6.6.3 - Public lighting repair - no. business days",{"$f":"INDEX(dms_663_List,MATCH(dms_TradingName,dms_TradingName_List))","v":5},"dms_663"]
[null,"Distribution Determination Reference",{"$f":"INDEX(dms_DeterminationRef_List,MATCH(dms_TradingName,dms_TradingName_List))","v":"2014-19 Distribution Determination"},"dms_DeterminationRef"]
[null,"Backcast templates only - unit of measure ","$0s","dms_Backcast_UOM","If the cover sheet is for Backcast data ensure to apply dms_Backcast_UOM named range to this field. Otherwise, do not apply this named range."]
[null,"EB/CA Unit of Measure for Monetary Values","$0s","dms_dollar_nom_UOM","If the cover sheet is attached to an EB files make sure this field is set"]
[]
[null,"discard this record?","NO","dms_DISCARD","If record is to be discarded from DB set this flag to YES"]
[null,"CBD Feeder for this business",{"$f":"INDEX(dms_CBD_flag,MATCH(dms_TradingName,dms_TradingName_List))","v":0},"dms_CBD_flag_NSP"]
[null,"Urban Feeder for this business",{"$f":"INDEX(dms_Urban_flag,MATCH(dms_TradingName,dms_TradingName_List))","v":0},"dms_Urban_flag_NSP"]
[null,"Short rural Feeder for this business",{"$f":"INDEX(dms_ShortRural_flag,MATCH(dms_TradingName,dms_TradingName_List))","v":"YES"},"dms_ShortRural_flag_NSP"]
[null,"Long rural Feeder for this business",{"$f":"INDEX(dms_LongRural_flag,MATCH(dms_TradingName,dms_TradingName_List))","v":"YES"},"dms_LongRural_flag_NSP"]
[]
[]
[null,"USES NAMED RANGES FLAG","yes","dms_Defined_Names_Used"]

{"sheet":"7.5 EBSS","index":2,"n_rows":78,"n_cols":23,"rows_kept":78,"cut":false,"hidden":false,"merged":[[24,4,24,8],[24,2,24,3],[7,1,7,12],[69,2,69,6],[58,10,58,11],[59,10,59,11],[60,10,60,11],[61,10,61,11],[62,10,62,11],[68,2,68,6],[12,2,12,11],[12,12,12,13],[24,10,24,16],[25,2,25,3],[25,4,25,8],[25,10,25,11],[25,12,25,16],[55,12,55,16],[45,18,49,19],[55,17,55,21],[38,2,38,8],[38,10,38,16],[39,2,39,3],[39,4,39,8],[39,10,39,11],[39,12,39,16]]}
[null,"REGULATORY REPORTING STATEMENT"]
[null,{"$f":"dms_TradingName","v":"Essential Energy"}]
[null,{"$f":"dms_Reg_Year_Span","v":"2019-20 to 2023-24"}]
[null,"7.5 EBSS"]
[]
[null,"Intstructions"]
[null,{"$f":"CONCATENATE(dms_TradingName, \" is required to populate all input cells (yellow) in this worksheet.\")","v":"Essential Energy is required to populate all input cells (yellow) in this worksheet."}]
[null,"\nEfficiency gains are calculated using the formulae below.  Adjusted target and actual amounts are used to calculate the carry over amounts. \n\nWe will calculate the efficiency gain in first year (n) as follows:\nEn = (Fn – An) – (Fn-1 – An-1) + (Fb – Ab)\nwhere Fn is the forecast opex we approved for the first year, and An is the actual opex incurred in the first year, and so on. The formula references the base year used to forecast opex. Actual opex in the final year of the current regulatory period should be set so that any incremental efficiency gains made after the base year sum to zero."]
[]
[]
[]
[null,"Actual and estimated inflation"]
[null,null,"Actual",null,null,null,null,null,null,null,null,null,"Estimated"]
[null,null,{"$f":"IF(dms_RPT=\"financial\",VALUE(LEFT(D14,4)-1)&\"-\"&TEXT(VALUE(MID(D14,3,2)),\"0#\"),VALUE(LEFT(D14,4)+1))","v":"2007-08"},{"$f":"IF(dms_RPT=\"financial\",VALUE(LEFT(E14,4)-1)&\"-\"&TEXT(VALUE(MID(E14,3,2)),\"0#\"),VALUE(LEFT(E14,4)+1))","v":"2008-09"},{"$f":"PRCP_y1","v":"2009-10"},{"$f":"PRCP_y2","v":"2010-11"},{"$f":"PRCP_y3","v":"2011-12"},{"$f":"PRCP_y4","v":"2012-13"},{"$f":"PRCP_y5","v":"2013-14"},{"$f":"CRCP_y1","v":"2014-15"},{"$f":"CRCP_y2","v":"2015-16"},{"$f":"CRCP_y3","v":"2016-17"},{"$f":"CRCP_y4","v":"2017-18"},{"$f":"CRCP_y5","v":"2018-19"}]
[null,"ABS CPI index - September (old base)",null,153.34951456310677,160.02427184466018,162.93689320388347,167.57281553398056,173.25242718446603]
[null,"ABS CPI index - September (rebased)",null,null,null,null,null,99.275000000000006,101.02500000000001,103.5,106.07500000000002,107.67500000000001,109.05000000000001,111.17500000000001]
[null,"Inflation rate (per cent) ",null,null,{"$f":"E15/D15-1","v":4.3526432415321503E-2},1.8201122402548009E-2,{"$f":"G15/F15-1","v":2.8452256815134858E-2},{"$f":"H15/G15-1","v":3.3893395133256288E-2},{"$f":"+I16/H16-1","v":1.76278015613196E-2},2.4498886414253906E-2,2.4879227053140163E-2,1.5083667216591934E-2,1.2769909449732886E-2,1.9486474094452033E-2]
[null,{"$f":"CONCATENATE(\"Reconstructed cumulative index (\",CRCP_y5,\"=1)\")","v":"Reconstructed cumulative index (2018-19=1)"},null,{"$f":"E18/(1+E17)","v":0.7903798059181254},{"$f":"F18/(1+F17)","v":0.82478221912285565},{"$f":"G18/(1+G17)","v":0.83979418124855587},0.86368822096529574,0.89296154711041165,{"$f":"J18/(1+J17)","v":0.90870249606476294},0.93096469530020254,0.95412637733303374,{"$f":"M18/(1+M17)","v":0.96851810209129763},{"$f":"N18/(1+N17)","v":0.98088599055543069},1]
[]
[]
[]
[null,"7.5.1 -  The carryover amounts that arise from applying the EBSS during the current regulatory control period"]
[]
[null,"7.5.1.1 - Opex allowance applicable to EBSS (EBSS target)"]
[null,null,{"$f":"CONCATENATE(\"$m, real \",dms_RPTMonth,\" \",(LEFT(PRCP_y1,2)&RIGHT(PRCP_y1,2))-1)","v":"$m, real June 2009"},null,{"$f":"CONCATENATE(\"$m, real \",dms_RPTMonth,\" \",(LEFT(PRCP_y5,2)&RIGHT(PRCP_y5,2)))","v":"$m, real June 2014"},null,null,null,null,null,{"$f":"CONCATENATE(\"$m, real \", dms_DollarReal)","v":"$m, real June 2019"}]
[null,null,"Previous period",null,"Current regulatory control period",null,null,null,null,null,"Previous period",null,"Current regulatory control period"]
[null,null,{"$f":"PRCP_y4","v":"2012-13"},{"$f":"PRCP_y5","v":"2013-14"},{"$f":"CRCP_y1","v":"2014-15"},{"$f":"CRCP_y2","v":"2015-16"},{"$f":"CRCP_y3","v":"2016-17"},{"$f":"CRCP_y4","v":"2017-18"},{"$f":"CRCP_y5","v":"2018-19"},null,{"$f":"PRCP_y4","v":"2012-13"},{"$f":"PRCP_y5","v":"2013-14"},{"$f":"CRCP_y1","v":"2014-15"},{"$f":"CRCP_y2","v":"2015-16"},{"$f":"CRCP_y3","v":"2016-17"},{"$f":"CRCP_y4","v":"2017-18"},{"$f":"CRCP_y5","v":"2018-19"}]
[null,"Total opex allowance",null,null,null,null,null,null,null,null,{"$f":"+C28/$D$18","v":0},{"$f":"+D28/$D$18","v":0},{"$f":"+E28/$I$18","v":0},{"$f":"+F28/$I$18","v":0},{"$f":"+G28/$I$18","v":0},{"$f":"+H28/$I$18","v":0},{"$f":"+I28/$I$18","v":0}]
[null,"Approved excludable costs - allowance "]
[null,"Debt raising costs",null,null,null,null,null,null,null,null,{"$f":"+C30/$D$18","v":0},0,{"$f":"E30/$I$18","v":0},{"$f":"F30/$I$18","v":0},0,0,0]
[null,"Excluded cost category 1",null,null,null,null,null,null,null,null,0,0,{"$f":"E31/$I$18","v":0},{"$f":"F31/$I$18","v":0},{"$f":"G31/$I$18","v":0},{"$f":"H31/$I$18","v":0},{"$f":"I31/$I$18","v":0}]
[null,"Excluded cost category 2",null,null,null,null,null,null,null,null,0,0,{"$f":"E32/$I$18","v":0},0,0,0,0]
[null,"Capitalisation policy changes",null,null,null,null,null,null,null,null,0,0,0,0,0,0,0]
[null,"Opex associated with pass throughs",null,null,null,null,null,null,null,null,0,0,0,0,0,0,0]
[null,"Other adjustments or exclusions required by the EBSS ",null,null,null,null,null,null,null,null,0,0,0,0,0,0,0]
[null,"Forecast opex for EBSS purposes",{"$f":"SUM(C28:C35)","v":0},0,{"$f":"SUM(E28:E35)","v":0},{"$f":"SUM(F28:F35)","v":0},{"$f":"SUM(G28:G35)","v":0},{"$f":"SUM(H28:H35)","v":0},{"$f":"SUM(I28:I35)","v":0},null,{"$f":"+SUM(K28:K35)","v":0},{"$f":"+SUM(L28:L35)","v":0},{"$f":"+SUM(M28:M35)","v":0},0,0,0,0]
[]
[null,"7.5.1.2 - Actual and estimated opex applicable to EBSS"]
[null,null,"$m, Actual ",null,null,null,null,null,null,null,{"$f":"CONCATENATE(\"$m, real \", dms_DollarReal)","v":"$m, real June 2019"}]
[null,null,"Previous period",null,"Current regulatory control period",null,null,null,null,null,"Previous period",null,"Current regulatory control period"]
[null,null,{"$f":"PRCP_y4","v":"2012-13"},{"$f":"PRCP_y5","v":"2013-14"},{"$f":"CRCP_y1","v":"2014-15"},{"$f":"CRCP_y2","v":"2015-16"},{"$f":"CRCP_y3","v":"2016-17"},{"$f":"CRCP_y4","v":"2017-18"},{"$f":"CRCP_y5","v":"2018-19"},null,{"$f":"PRCP_y4","v":"2012-13"},{"$f":"PRCP_y5","v":"2013-14"},{"$f":"CRCP_y1","v":"2014-15"},{"$f":"CRCP_y2","v":"2015-16"},{"$f":"CRCP_y3","v":"2016-17"},{"$f":"CRCP_y4","v":"2017-18"},{"$f":"CRCP_y5","v":"2018-19"}]
[null,"Total opex ",null,null,null,null,null,null,null,null,{"$f":"+C42/H$18*(1+H$17)^0.5","v":0},0,{"$f":"+E42/J$18*(1+J$17)^0.5","v":0},{"$f":"+F42/K$18*(1+K$17)^0.5","v":0},{"$f":"+G42/L$18*(1+L$17)^0.5","v":0},{"$f":"+H42/M$18*(1+M$17)^0.5","v":0}]
[null,"Approved excludable costs"]
[null,{"$f":"B30","v":"Debt raising costs"},null,null,null,null,null,null,null,null,{"$f":"C44/H$18*(1+H$17)^0.5","v":0},0,{"$f":"E44/J$18*(1+J$17)^0.5","v":0},{"$f":"F44/K$18*(1+K$17)^0.5","v":0},0,0]
[null,{"$f":"B31","v":"Excluded cost category 1"},null,null,null,null,null,null,null,null,{"$f":"C45/H$18*(1+H$17)^0.5","v":0},{"$f":"D45/I$18*(1+I$17)^0.5","v":0},{"$f":"E45/J$18*(1+J$17)^0.5","v":0},{"$f":"F45/K$18*(1+K$17)^0.5","v":0},{"$f":"G45/L$18*(1+L$17)^0.5","v":0},{"$f":"H45/M$18*(1+M$17)^0.5","v":0}]
[null,{"$f":"B32","v":"Excluded cost category 2"},null,null,null,null,null,null,null,null,0,0,{"$f":"E46/J$18*(1+J$17)^0.5","v":0},0,0,0,null,null,{"$f":"CONCATENATE(dms_TradingName,\" to nominate base year used to forecast opex \n(drop down menu)\")","v":"Essential Energy to nominate base year used to forecast opex \n(drop down menu)"}]
[null,"Capitalisation policy changes",null,null,null,null,null,null,null,null,0,0,0,0,0,0]
[null,"Movements in provisions related to opex",null,null,null,null,null,null,null,null,0,0,0,0,0,0]
[null,"Other adjustments or exclusions required by the EBSS ",null,null,null,null,null,null,null,null,0,0,0,0,0,0]
[null,"Actual opex for EBSS purposes",{"$f":"SUM(C42:C49)","v":0},0,{"$f":"SUM(E42:E49)","v":0},{"$f":"SUM(F42:F49)","v":0},{"$f":"SUM(G42:G49)","v":0},{"$f":"SUM(H42:H49)","v":0},null,null,{"$f":"K42+SUM(K44:K49)","v":0},{"$f":"L42+SUM(L44:L49)","v":0},{"$f":"M42+SUM(M44:M49)","v":0},0,0,0,{"$f":"IF(R50=\"2017-18\", Q36-(P36-P50), Q36-(O36-O50))","v":0},"2016-17"]
[]
[null,null,null,null,null,null,null,null,null,null,{"$f":"CONCATENATE(\"Incremental gain $m, real \", dms_DollarReal)","v":"Incremental gain $m, real June 2019"}]
[null,null,null,null,null,null,null,null,null,null,null,null,{"$f":"IF(dms_EBSS_status=\"No\",(M36-M50)-(L36-L50)+(K36-K50),(M36-M50))","v":0},{"$f":"(N36-N50)-(M36-M50)","v":0},{"$f":"(O36-O50)-(N36-N50)","v":0},{"$f":"(P36-P50)-(O36-O50)","v":0},{"$f":"(Q36-Q50)-(P36-P50)","v":0}]
[]
[null,null,null,null,null,null,null,null,null,null,"Carryover"]
[null,null,null,null,null,null,null,null,null,null,null,null,"Current regulatory control period",null,null,null,null,"Forthcoming regulatory control period"]
[null,null,null,null,null,null,null,null,null,null,null,null,{"$f":"CONCATENATE(\"$m, real \", dms_DollarReal)","v":"$m, real June 2019"}]
[null,null,null,null,null,null,null,null,null,null,null,null,{"$f":"CRCP_y1","v":"2014-15"},{"$f":"CRCP_y2","v":"2015-16"},{"$f":"CRCP_y3","v":"2016-17"},{"$f":"CRCP_y4","v":"2017-18"},{"$f":"CRCP_y5","v":"2018-19"},{"$f":"FRCP_y1","v":"2019-20"},{"$f":"FRCP_y2","v":"2020-21"},{"$f":"FRCP_y3","v":"2021-22"},{"$f":"FRCP_y4","v":"2022-23"},{"$f":"FRCP_y5","v":"2023-24"},"Total"]
[null,null,null,null,null,null,null,null,null,null,{"$f":"CRCP_y1","v":"2014-15"},null,null,{"$f":"$M$53","v":0},{"$f":"$M$53","v":0},{"$f":"$M$53","v":0},{"$f":"$M$53","v":0},{"$f":"$M$53","v":0}]
[null,null,null,null,null,null,null,null,null,null,{"$f":"CRCP_y2","v":"2015-16"},null,null,null,{"$f":"$N$53","v":0},{"$f":"$N$53","v":0},{"$f":"$N$53","v":0},{"$f":"$N$53","v":0},{"$f":"$N$53","v":0}]
[null,null,null,null,null,null,null,null,null,null,{"$f":"CRCP_y3","v":"2016-17"},null,null,null,null,{"$f":"$O$53","v":0},{"$f":"$O$53","v":0},{"$f":"$O$53","v":0},{"$f":"$O$53","v":0},{"$f":"$O$53","v":0}]
[null,null,null,null,null,null,null,null,null,null,{"$f":"CRCP_y4","v":"2017-18"},null,null,null,null,null,{"$f":"$P$53","v":0},{"$f":"$P$53","v":0},{"$f":"$P$53","v":0},{"$f":"$P$53","v":0},{"$f":"$P$53","v":0}]
[null,null,null,null,null,null,null,null,null,null,{"$f":"CRCP_y5","v":"2018-19"},null,null,null,null,null,null,{"$f":"+$Q$53","v":0},{"$f":"+$Q$53","v":0},{"$f":"+$Q$53","v":0},{"$f":"+$Q$53","v":0},{"$f":"+$Q$53","v":0}]
[null,null,null,null,null,null,null,null,null,null,{"$f":"CONCATENATE(\"Total Carryover Amount ($m, \",dms_DollarReal,\")\")","v":"Total Carryover Amount ($m, June 2019)"},null,null,null,null,null,null,{"$f":"+SUM(R59:R63)","v":0},{"$f":"+SUM(S60:S63)","v":0},{"$f":"+SUM(T61:T63)","v":0},{"$f":"+SUM(U62:U63)","v":0},{"$f":"+SUM(V63)","v":0},{"$f":"+SUM(R64:V64)","v":0}]
[]
[null,null,null,null,null,null,null,null,null,null,{"$f":"CONCATENATE(\"PTRM inputs ($m, \",dms_DollarReal,\")\")","v":"PTRM inputs ($m, June 2019)"},null,null,null,null,null,null,{"$f":"R64","v":0},{"$f":"S64","v":0},{"$f":"T64","v":0},{"$f":"U64","v":0},{"$f":"V64","v":0},{"$f":"+SUM(R66:V66)","v":0}]
[]
[null,"7.5.2 - Proposed forecast opex for the EBSS for the forthcoming regulatory control period"]
[null,null,"Forthcoming regulatory control period"]
[null,null,{"$f":"CONCATENATE(\"$m, real \", dms_DollarReal)","v":"$m, real June 2019"}]
[null,null,{"$f":"FRCP_y1","v":"2019-20"},{"$f":"FRCP_y2","v":"2020-21"},{"$f":"FRCP_y3","v":"2021-22"},{"$f":"FRCP_y4","v":"2022-23"},{"$f":"FRCP_y5","v":"2023-24"}]
[null,"Forecast opex",371.47030078733354,358.37526770304322,346.1141249778787,322.89605288524655,298.92063090699116,{"$f":"+SUM(C72:G72)","v":1697.7763772604931}]
[null,"Less excluded costs"]
[null,"< Enter category proposed for exclusion >  eg. Debt raising costs",null,null,null,null,null,{"$f":"+SUM(C74:G74)","v":0}]
[null,null,null,null,null,null,null,{"$f":"+SUM(C75:G75)","v":0}]
[null,null,null,null,null,null,null,0]
[null,null,null,null,null,null,null,0]
[null,{"$f":"CONCATENATE(\"Adjusted forecast opex ($m, \",CRCP_y5,\")\")","v":"Adjusted forecast opex ($m, 2018-19)"},{"$f":"+C72-SUM(C74:C77)","v":371.47030078733354},{"$f":"+D72-SUM(D74:D77)","v":358.37526770304322},{"$f":"+E72-SUM(E74:E77)","v":346.1141249778787},{"$f":"+F72-SUM(F74:F77)","v":322.89605288524655},{"$f":"+G72-SUM(G74:G77)","v":298.92063090699116},{"$f":"SUM(H72:H77)","v":1697.7763772604931}]